[Event "Titled Tuesday Blitz March 28 Late 2023"]
[White "Melikhov, Evgeny V."]
[Black "Toma, Katarzyna"]
[WhiteFideId "4122046"]
[BlackFideId "1119907"]
[WhiteElo "2158"]
[BlackElo "2149"]
[Result "1-0"]
[Round "02"]
[TimeControl "180+2"]
[Date "2023.03.28"]
[WhiteClock "0:00:17"]
[BlackClock "0:00:02"]

1. d4 {[%clk 0:03:00]}  Nf6 {[%clk 0:02:58]} 2. c4 {[%clk 0:03:00]}  g6 {[%clk 0:02:55]} 3. Nc3 {[%clk 0:03:00]}  d5 {[%clk 0:02:54]} 4. cxd5 {[%clk 0:03:00]}  Nxd5 {[%clk 0:02:55]} 5. e4 {[%clk 0:03:00]}  Nxc3 {[%clk 0:02:54]} 6. bxc3 {[%clk 0:03:01]}  Bg7 {[%clk 0:02:54]} 7. Bc4 {[%clk 0:03:01]}  c5 {[%clk 0:02:54]} 8. Ne2 {[%clk 0:03:02]}  Nc6 {[%clk 0:02:51]} 9. Be3 {[%clk 0:03:02]}  O-O {[%clk 0:02:49]} 10. h4 {[%clk 0:03:02]}  Qc7 {[%clk 0:02:39]} 11. Rc1 {[%clk 0:02:54]}  Rd8 {[%clk 0:02:35]} 12. h5 {[%clk 0:02:52]}  Ne5 {[%clk 0:02:03]} 13. Bb3 {[%clk 0:02:31]}  Ng4 {[%clk 0:01:57]} 14. Bf4 {[%clk 0:02:01]}  Qa5 {[%clk 0:01:45]} 15. h6 {[%clk 0:01:32]}  Bh8 {[%clk 0:01:37]} 16. f3 {[%clk 0:01:18]}  Ne5 {[%clk 0:01:23]} 17. O-O {[%clk 0:00:58]}  c4 {[%clk 0:00:22]} 18. Bc2 {[%clk 0:00:56]}  Nc6 {[%clk 0:00:22]} 19. Qd2 {[%clk 0:00:44]}  e5 {[%clk 0:00:16]} 20. Bg5 {[%clk 0:00:44]}  f6 {[%clk 0:00:16]} 21. Be3 {[%clk 0:00:42]}  Be6 {[%clk 0:00:09]} 22. d5 {[%clk 0:00:39]}  Bf7 {[%clk 0:00:09]} 23. Rb1 {[%clk 0:00:37]}  b6 {[%clk 0:00:06]} 24. Rb2 {[%clk 0:00:34]}  Qa6 {[%clk 0:00:04]} 25. Rfb1 {[%clk 0:00:33]}  Na5 {[%clk 0:00:03]} 26. Rb5 {[%clk 0:00:30]}  Nb7 {[%clk 0:00:03]} 27. R5b4 {[%clk 0:00:28]}  Nd6 {[%clk 0:00:03]} 28. Ra4 {[%clk 0:00:25]}  Qb7 {[%clk 0:00:03]} 29. Rab4 {[%clk 0:00:17]}  Rac8 {[%clk 0:00:02]} 30. a4 {[%clk 0:00:17]} 1-0


[Site "https://www.chess.com"]

[Event "Titled Tuesday Blitz March 28 Late 2023"]
[White "Vafin, Ayrat"]
[Black "Manu_ChessExcelsior"]
[WhiteFideId "4146530"]
[WhiteElo "2317"]
[BlackElo "2091"]
[Result "1-0"]
[Round "02"]
[TimeControl "180+2"]
[Date "2023.03.28"]
[WhiteClock "0:01:06"]
[BlackClock "0:00:02"]

1. Nf3 {[%clk 0:03:00]}  d5 {[%clk 0:02:58]} 2. g3 {[%clk 0:03:01]}  e6 {[%clk 0:02:58]} 3. Bg2 {[%clk 0:03:00]}  Nf6 {[%clk 0:02:59]} 4. c4 {[%clk 0:03:00]}  Be7 {[%clk 0:03:00]} 5. b3 {[%clk 0:03:01]}  O-O {[%clk 0:03:00]} 6. Bb2 {[%clk 0:03:01]}  b6 {[%clk 0:02:59]} 7. e3 {[%clk 0:03:01]}  Bb7 {[%clk 0:02:49]} 8. O-O {[%clk 0:03:01]}  c5 {[%clk 0:02:44]} 9. Qe2 {[%clk 0:03:01]}  Nbd7 {[%clk 0:02:44]} 10. Nc3 {[%clk 0:03:01]}  Rc8 {[%clk 0:02:43]} 11. d3 {[%clk 0:02:56]}  Qc7 {[%clk 0:02:43]} 12. Rfd1 {[%clk 0:02:55]}  Rfd8 {[%clk 0:02:42]} 13. Rac1 {[%clk 0:02:55]}  Qb8 {[%clk 0:02:42]} 14. cxd5 {[%clk 0:02:55]}  Nxd5 {[%clk 0:02:36]} 15. Nxd5 {[%clk 0:02:55]}  Bxd5 {[%clk 0:02:36]} 16. d4 {[%clk 0:02:55]}  cxd4 {[%clk 0:02:33]} 17. Nxd4 {[%clk 0:02:53]}  Bxg2 {[%clk 0:02:12]} 18. Kxg2 {[%clk 0:02:54]}  Qb7+ {[%clk 0:02:00]} 19. Qf3 {[%clk 0:02:53]}  Qxf3+ {[%clk 0:01:57]} 20. Kxf3 {[%clk 0:02:53]}  Ne5+ {[%clk 0:01:54]} 21. Ke2 {[%clk 0:02:53]}  Bf6 {[%clk 0:01:45]} 22. f4 {[%clk 0:02:22]}  Ng6 {[%clk 0:01:35]} 23. Rxc8 {[%clk 0:02:09]}  Rxc8 {[%clk 0:01:33]} 24. Rd2 {[%clk 0:01:54]}  Ne7 {[%clk 0:01:30]} 25. Nb5 {[%clk 0:01:49]}  Bxb2 {[%clk 0:01:14]} 26. Rxb2 {[%clk 0:01:50]}  a6 {[%clk 0:01:14]} 27. Nd6 {[%clk 0:01:51]}  Rc7 {[%clk 0:01:07]} 28. Nc4 {[%clk 0:01:47]}  b5 {[%clk 0:01:06]} 29. Ne5 {[%clk 0:01:47]}  f6 {[%clk 0:01:04]} 30. Nd3 {[%clk 0:01:46]}  Kf7 {[%clk 0:01:04]} 31. e4 {[%clk 0:01:38]}  h5 {[%clk 0:01:00]} 32. Ke3 {[%clk 0:01:37]}  Ke8 {[%clk 0:00:44]} 33. Rd2 {[%clk 0:01:34]}  Nc8 {[%clk 0:00:36]} 34. Nb4 {[%clk 0:01:29]}  a5 {[%clk 0:00:32]} 35. Nc2 {[%clk 0:01:29]}  Ke7 {[%clk 0:00:30]} 36. Nd4 {[%clk 0:01:27]}  Nd6 {[%clk 0:00:23]} 37. e5 {[%clk 0:01:19]}  Nf5+ {[%clk 0:00:12]} 38. Nxf5+ {[%clk 0:01:19]}  exf5 {[%clk 0:00:13]} 39. exf6+ {[%clk 0:01:18]}  Kxf6 {[%clk 0:00:11]} 40. Rd6+ {[%clk 0:01:10]}  Ke7 {[%clk 0:00:02]} 41. Ra6 {[%clk 0:01:06]} 1-0


[Site "https://www.chess.com"]

[Event "Titled Tuesday Blitz March 28 Late 2023"]
[White "Rottenwohrer Suarez, Juan"]
[Black "Ardito, Andrew"]
[WhiteFideId "32068182"]
[BlackFideId "2033976"]
[WhiteElo "2174"]
[BlackElo "2090"]
[Result "1-0"]
[Round "02"]
[TimeControl "180+2"]
[Date "2023.03.28"]
[WhiteClock "0:01:00"]
[BlackClock "0:00:19"]

1. e4 {[%clk 0:03:00]}  Nf6 {[%clk 0:03:00]} 2. e5 {[%clk 0:03:00]}  Ng8 {[%clk 0:03:01]} 3. d4 {[%clk 0:03:01]}  d6 {[%clk 0:03:01]} 4. Nf3 {[%clk 0:03:01]}  Bg4 {[%clk 0:03:01]} 5. h3 {[%clk 0:03:01]}  Bh5 {[%clk 0:03:01]} 6. Bc4 {[%clk 0:03:00]}  d5 {[%clk 0:03:01]} 7. Be2 {[%clk 0:02:54]}  e6 {[%clk 0:03:01]} 8. O-O {[%clk 0:02:52]}  c5 {[%clk 0:03:01]} 9. c4 {[%clk 0:02:45]}  Nc6 {[%clk 0:02:57]} 10. cxd5 {[%clk 0:02:44]}  exd5 {[%clk 0:02:54]} 11. Bg5 {[%clk 0:02:38]}  Be7 {[%clk 0:02:51]} 12. Bxe7 {[%clk 0:02:36]}  Ngxe7 {[%clk 0:02:51]} 13. dxc5 {[%clk 0:02:36]}  O-O {[%clk 0:02:47]} 14. Nc3 {[%clk 0:02:34]}  d4 {[%clk 0:02:42]} 15. Nb5 {[%clk 0:02:26]}  Bxf3 {[%clk 0:02:37]} 16. Bxf3 {[%clk 0:02:26]}  Nxe5 {[%clk 0:02:36]} 17. Bxb7 {[%clk 0:02:25]}  Rb8 {[%clk 0:02:34]} 18. Nd6 {[%clk 0:02:20]}  Nf5 {[%clk 0:01:10]} 19. Nxf5 {[%clk 0:01:32]}  Rxb7 {[%clk 0:01:09]} 20. Rb1 {[%clk 0:01:32]}  d3 {[%clk 0:01:07]} 21. Nd6 {[%clk 0:01:23]}  Rc7 {[%clk 0:00:59]} 22. b4 {[%clk 0:01:20]}  Qh4 {[%clk 0:00:44]} 23. Re1 {[%clk 0:01:13]}  f6 {[%clk 0:00:40]} 24. Re4 {[%clk 0:01:02]}  Qh6 {[%clk 0:00:32]} 25. f4 {[%clk 0:01:00]}  Ng6 {[%clk 0:00:20]} 26. Qxd3 {[%clk 0:01:00]}  Nxf4 {[%clk 0:00:20]} 27. Qc4+ {[%clk 0:01:00]}  Kh8 {[%clk 0:00:19]} 28. Rxf4 {[%clk 0:01:00]} 1-0


[Site "https://www.chess.com"]

[Event "Titled Tuesday Blitz March 28 Late 2023"]
[White "Kielinkei"]
[Black "Necula, Iulian"]
[BlackFideId "1232380"]
[WhiteElo "2415"]
[BlackElo "1790"]
[Result "0-1"]
[Round "02"]
[TimeControl "180+2"]
[Date "2023.03.28"]
[WhiteClock "0:00:08"]
[BlackClock "0:00:56"]

1. Nf3 {[%clk 0:03:00]}  d6 {[%clk 0:02:59]} 2. e4 {[%clk 0:02:59]}  Nf6 {[%clk 0:02:58]} 3. Nc3 {[%clk 0:02:58]}  e5 {[%clk 0:02:58]} 4. d4 {[%clk 0:02:55]}  Nbd7 {[%clk 0:02:58]} 5. h3 {[%clk 0:02:53]}  Be7 {[%clk 0:02:57]} 6. Be3 {[%clk 0:02:53]}  c6 {[%clk 0:02:57]} 7. a4 {[%clk 0:02:43]}  Qc7 {[%clk 0:02:57]} 8. Bc4 {[%clk 0:02:43]}  h6 {[%clk 0:02:56]} 9. O-O {[%clk 0:02:42]}  g5 {[%clk 0:02:49]} 10. dxe5 {[%clk 0:02:39]}  dxe5 {[%clk 0:02:49]} 11. Qe2 {[%clk 0:02:33]}  Nf8 {[%clk 0:02:46]} 12. Rad1 {[%clk 0:02:27]}  Ng6 {[%clk 0:02:45]} 13. Nh2 {[%clk 0:01:52]}  Nf4 {[%clk 0:02:41]} 14. Bxf4 {[%clk 0:01:51]}  gxf4 {[%clk 0:02:42]} 15. Ng4 {[%clk 0:01:34]}  Nxg4 {[%clk 0:02:37]} 16. hxg4 {[%clk 0:01:35]}  Rg8 {[%clk 0:02:37]} 17. f3 {[%clk 0:01:24]}  h5 {[%clk 0:02:33]} 18. gxh5 {[%clk 0:01:04]}  Bh3 {[%clk 0:02:26]} 19. Rf2 {[%clk 0:01:04]}  Bc5 {[%clk 0:02:24]} 20. Kf1 {[%clk 0:00:36]}  Bxf2 {[%clk 0:02:23]} 21. gxh3 {[%clk 0:00:34]}  Be3 {[%clk 0:02:23]} 22. Qh2 {[%clk 0:00:29]}  Rg1+ {[%clk 0:02:12]} 23. Ke2 {[%clk 0:00:29]}  Rxd1 {[%clk 0:02:09]} 24. Nxd1 {[%clk 0:00:28]}  O-O-O {[%clk 0:02:07]} 25. Nxe3 {[%clk 0:00:27]}  fxe3 {[%clk 0:02:07]} 26. Kxe3 {[%clk 0:00:24]}  Qb6+ {[%clk 0:02:06]} 27. Ke2 {[%clk 0:00:24]}  Qxb2 {[%clk 0:02:03]} 28. Bd3 {[%clk 0:00:25]}  c5 {[%clk 0:01:59]} 29. Qg1 {[%clk 0:00:14]}  b6 {[%clk 0:01:58]} 30. h6 {[%clk 0:00:07]}  c4 {[%clk 0:01:56]} 31. h7 {[%clk 0:00:06]}  cxd3+ {[%clk 0:01:55]} 32. Kf2 {[%clk 0:00:06]}  Qxc2+ {[%clk 0:01:54]} 33. Kg3 {[%clk 0:00:06]}  Rh8 {[%clk 0:01:49]} 34. Kh4 {[%clk 0:00:07]}  d2 {[%clk 0:01:26]} 35. Qg8+ {[%clk 0:00:07]}  Kb7 {[%clk 0:01:21]} 36. Qxf7+ {[%clk 0:00:06]}  Ka6 {[%clk 0:01:20]} 37. Qg7 {[%clk 0:00:04]}  Rxh7+ {[%clk 0:01:19]} 38. Qxh7 {[%clk 0:00:05]}  d1=Q {[%clk 0:01:16]} 39. Qf5 {[%clk 0:00:06]}  Qe1+ {[%clk 0:01:16]} 40. Kg5 {[%clk 0:00:05]}  Qg3+ {[%clk 0:01:13]} 41. Kf6 {[%clk 0:00:06]}  Qf4 {[%clk 0:01:07]} 42. Qxf4 {[%clk 0:00:04]}  exf4 {[%clk 0:01:07]} 43. e5 {[%clk 0:00:05]}  Qc3 {[%clk 0:00:59]} 44. Kf5 {[%clk 0:00:05]}  Qxf3 {[%clk 0:00:58]} 45. e6 {[%clk 0:00:05]}  Qe3 {[%clk 0:00:58]} 46. Kf6 {[%clk 0:00:05]}  f3 {[%clk 0:00:58]} 47. e7 {[%clk 0:00:06]}  f2 {[%clk 0:00:58]} 48. Kf7 {[%clk 0:00:07]}  f1=Q+ {[%clk 0:00:57]} 49. Ke8 {[%clk 0:00:08]}  Qfe1 {[%clk 0:00:56]} 0-1


[Site "https://www.chess.com"]

[Event "Titled Tuesday Blitz March 28 Late 2023"]
[White "Ribeiro, Matheus Mendes Domingues"]
[Black "Maluco_do_Natal_00"]
[WhiteFideId "324226923"]
[WhiteElo "2168"]
[BlackElo "2035"]
[Result "1-0"]
[Round "02"]
[TimeControl "180+2"]
[Date "2023.03.28"]
[WhiteClock "0:02:30"]
[BlackClock "0:00:02"]

1. c4 {[%clk 0:03:00]}  c5 {[%clk 0:02:59]} 2. g3 {[%clk 0:02:49]}  Nc6 {[%clk 0:02:58]} 3. Bg2 {[%clk 0:02:49]}  Nf6 {[%clk 0:02:57]} 4. Nf3 {[%clk 0:02:49]}  g6 {[%clk 0:02:56]} 5. O-O {[%clk 0:02:47]}  Bg7 {[%clk 0:02:56]} 6. Nc3 {[%clk 0:02:48]}  O-O {[%clk 0:02:57]} 7. d4 {[%clk 0:02:47]}  cxd4 {[%clk 0:02:53]} 8. Nxd4 {[%clk 0:02:48]}  a6 {[%clk 0:02:45]} 9. b3 {[%clk 0:02:48]}  Qc7 {[%clk 0:00:37]} 10. Bb2 {[%clk 0:02:43]}  d6 {[%clk 0:00:14]} 11. Rc1 {[%clk 0:02:33]}  h6 {[%clk 0:00:11]} 12. Nd5 {[%clk 0:02:33]}  Qd8 {[%clk 0:00:09]} 13. Nxf6+ {[%clk 0:02:26]}  Bxf6 {[%clk 0:00:09]} 14. Nxc6 {[%clk 0:02:26]}  bxc6 {[%clk 0:00:07]} 15. Bxf6 {[%clk 0:02:27]}  exf6 {[%clk 0:00:07]} 16. Bxc6 {[%clk 0:02:28]}  Rb8 {[%clk 0:00:07]} 17. Qd4 {[%clk 0:02:27]}  Kg7 {[%clk 0:00:06]} 18. Rfd1 {[%clk 0:02:27]}  Be6 {[%clk 0:00:03]} 19. Qxd6 {[%clk 0:02:28]}  Qb6 {[%clk 0:00:03]} 20. Bg2 {[%clk 0:02:28]}  Rfd8 {[%clk 0:00:02]} 21. Qxb6 {[%clk 0:02:27]}  Rxd1+ {[%clk 0:00:02]} 22. Rxd1 {[%clk 0:02:28]}  Rxb6 {[%clk 0:00:03]} 23. c5 {[%clk 0:02:26]}  Rb4 {[%clk 0:00:02]} 24. Rc1 {[%clk 0:02:25]}  Rb8 {[%clk 0:00:01]} 25. c6 {[%clk 0:02:25]}  Rc8 {[%clk 0:00:01]} 26. c7 {[%clk 0:02:26]}  a5 {[%clk 0:00:01]} 27. Bb7 {[%clk 0:02:26]}  f5 {[%clk 0:00:01]} 28. Bxc8 {[%clk 0:02:27]}  Bxc8 {[%clk 0:00:02]} 29. Rd1 {[%clk 0:02:27]}  Kf6 {[%clk 0:00:01]} 30. Rd8 {[%clk 0:02:28]}  Bb7 {[%clk 0:00:02]} 31. c8=Q {[%clk 0:02:29]}  Bxc8 {[%clk 0:00:02]} 32. Rxc8 {[%clk 0:02:30]} 1-0


[Site "https://www.chess.com"]

[Event "Titled Tuesday Blitz March 28 Late 2023"]
[White "Corrales Jimenez, Fidel"]
[Black "Nakamura, Hikaru"]
[WhiteFideId "3506690"]
[BlackFideId "2016192"]
[WhiteElo "2541"]
[BlackElo "2879"]
[Result "0-1"]
[Round "03"]
[TimeControl "180+2"]
[Date "2023.03.28"]
[WhiteClock "0:00:29"]
[BlackClock "0:01:37"]

1. d4 {[%clk 0:03:00]}  g6 {[%clk 0:02:56]} 2. c4 {[%clk 0:03:00]}  Bg7 {[%clk 0:02:55]} 3. Nc3 {[%clk 0:03:00]}  c5 {[%clk 0:02:56]} 4. d5 {[%clk 0:03:00]}  Bxc3+ {[%clk 0:02:56]} 5. bxc3 {[%clk 0:03:00]}  f5 {[%clk 0:02:57]} 6. Nf3 {[%clk 0:02:54]}  Qa5 {[%clk 0:02:53]} 7. Qd3 {[%clk 0:02:54]}  d6 {[%clk 0:02:52]} 8. h4 {[%clk 0:02:54]}  Nf6 {[%clk 0:02:52]} 9. Bh6 {[%clk 0:02:48]}  Nbd7 {[%clk 0:02:50]} 10. Bg7 {[%clk 0:02:47]}  Rg8 {[%clk 0:02:51]} 11. Bxf6 {[%clk 0:02:47]}  Nxf6 {[%clk 0:02:51]} 12. Nd2 {[%clk 0:02:46]}  Bd7 {[%clk 0:02:49]} 13. f3 {[%clk 0:02:45]}  f4 {[%clk 0:02:47]} 14. e3 {[%clk 0:02:41]}  Bf5 {[%clk 0:02:40]} 15. e4 {[%clk 0:02:34]}  Bc8 {[%clk 0:02:40]} 16. Kf2 {[%clk 0:02:26]}  Nd7 {[%clk 0:02:39]} 17. Nb3 {[%clk 0:02:26]}  Qa3 {[%clk 0:02:35]} 18. Qd2 {[%clk 0:02:26]}  Rf8 {[%clk 0:02:36]} 19. Nc1 {[%clk 0:02:20]}  Ne5 {[%clk 0:02:36]} 20. Bd3 {[%clk 0:02:20]}  b6 {[%clk 0:02:30]} 21. Ne2 {[%clk 0:02:16]}  Ba6 {[%clk 0:02:29]} 22. Rhb1 {[%clk 0:02:11]}  h6 {[%clk 0:02:02]} 23. Rb3 {[%clk 0:02:11]}  Qa5 {[%clk 0:02:02]} 24. a4 {[%clk 0:02:07]}  g5 {[%clk 0:02:02]} 25. hxg5 {[%clk 0:02:06]}  hxg5 {[%clk 0:02:02]} 26. Nc1 {[%clk 0:01:23]}  g4 {[%clk 0:01:56]} 27. Qb2 {[%clk 0:01:19]}  Nxd3+ {[%clk 0:01:51]} 28. Nxd3 {[%clk 0:01:18]}  Bxc4 {[%clk 0:01:51]} 29. Rb5 {[%clk 0:01:18]}  Qa6 {[%clk 0:01:52]} 30. Rd1 {[%clk 0:00:59]}  g3+ {[%clk 0:01:48]} 31. Ke1 {[%clk 0:00:58]}  Qxa4 {[%clk 0:01:48]} 32. Rxb6 {[%clk 0:00:28]}  axb6 {[%clk 0:01:47]} 33. Qxb6 {[%clk 0:00:29]}  Qb5 {[%clk 0:01:42]} 34. Qc7 {[%clk 0:00:28]}  Kf7 {[%clk 0:01:39]} 35. e5 {[%clk 0:00:29]}  Rfc8 {[%clk 0:01:39]} 36. e6+ {[%clk 0:00:29]}  Ke8 {[%clk 0:01:37]} 0-1


[Site "https://www.chess.com"]

[Event "Titled Tuesday Blitz March 28 Late 2023"]
[White "Firouzja, Alireza"]
[Black "Krallis, Christos"]
[WhiteFideId "12573981"]
[BlackFideId "4298896"]
[WhiteElo "2904"]
[BlackElo "2243"]
[Result "1-0"]
[Round "03"]
[TimeControl "180+2"]
[Date "2023.03.28"]
[WhiteClock "0:00:27"]
[BlackClock "0:00:07"]

1. d4 {[%clk 0:03:00]}  Nf6 {[%clk 0:02:59]} 2. Bg5 {[%clk 0:03:00]}  c6 {[%clk 0:02:53]} 3. Nd2 {[%clk 0:02:53]}  Qb6 {[%clk 0:02:45]} 4. Ngf3 {[%clk 0:02:43]}  d5 {[%clk 0:02:41]} 5. e3 {[%clk 0:02:38]}  Bg4 {[%clk 0:02:35]} 6. Bd3 {[%clk 0:02:34]}  Nbd7 {[%clk 0:02:32]} 7. c4 {[%clk 0:02:27]}  e6 {[%clk 0:02:28]} 8. Qc2 {[%clk 0:02:23]}  h6 {[%clk 0:02:21]} 9. Bh4 {[%clk 0:02:20]}  Be7 {[%clk 0:02:02]} 10. O-O {[%clk 0:02:19]}  O-O {[%clk 0:02:01]} 11. Ne5 {[%clk 0:02:18]}  Qd8 {[%clk 0:01:50]} 12. h3 {[%clk 0:01:49]}  dxc4 {[%clk 0:01:09]} 13. Ndxc4 {[%clk 0:01:38]}  Bf5 {[%clk 0:00:55]} 14. Bxf5 {[%clk 0:01:36]}  exf5 {[%clk 0:00:55]} 15. Qxf5 {[%clk 0:01:34]}  Nxe5 {[%clk 0:00:55]} 16. Nxe5 {[%clk 0:01:32]}  Nd5 {[%clk 0:00:51]} 17. Bxe7 {[%clk 0:01:29]}  Qxe7 {[%clk 0:00:50]} 18. Rac1 {[%clk 0:01:29]}  Rfe8 {[%clk 0:00:48]} 19. Nd3 {[%clk 0:01:27]}  Nf6 {[%clk 0:00:43]} 20. Nc5 {[%clk 0:01:24]}  Rad8 {[%clk 0:00:42]} 21. Qc2 {[%clk 0:01:16]}  Nd5 {[%clk 0:00:34]} 22. Qb3 {[%clk 0:01:15]}  Rb8 {[%clk 0:00:31]} 23. Nd3 {[%clk 0:01:13]}  h5 {[%clk 0:00:28]} 24. Rc5 {[%clk 0:01:11]}  h4 {[%clk 0:00:26]} 25. Ne5 {[%clk 0:01:10]}  f6 {[%clk 0:00:14]} 26. Ng6 {[%clk 0:01:06]}  Qf7 {[%clk 0:00:14]} 27. Nxh4 {[%clk 0:01:05]}  Re4 {[%clk 0:00:11]} 28. Nf5 {[%clk 0:01:05]}  Re6 {[%clk 0:00:09]} 29. Rfc1 {[%clk 0:00:55]}  Rbe8 {[%clk 0:00:09]} 30. Qc2 {[%clk 0:00:50]}  Qh5 {[%clk 0:00:08]} 31. Ng3 {[%clk 0:00:49]}  Qf7 {[%clk 0:00:08]} 32. a3 {[%clk 0:00:48]}  g6 {[%clk 0:00:09]} 33. e4 {[%clk 0:00:47]}  Nf4 {[%clk 0:00:06]} 34. Qd2 {[%clk 0:00:47]}  g5 {[%clk 0:00:06]} 35. Rf5 {[%clk 0:00:46]}  Qg6 {[%clk 0:00:06]} 36. f3 {[%clk 0:00:47]}  Rd8 {[%clk 0:00:06]} 37. Kh2 {[%clk 0:00:46]}  Red6 {[%clk 0:00:06]} 38. Rd1 {[%clk 0:00:32]}  Ne6 {[%clk 0:00:05]} 39. d5 {[%clk 0:00:29]}  cxd5 {[%clk 0:00:05]} 40. Rxd5 {[%clk 0:00:28]}  Rxd5 {[%clk 0:00:06]} 41. exd5 {[%clk 0:00:29]}  Nf4 {[%clk 0:00:07]} 42. d6 {[%clk 0:00:29]}  f5 {[%clk 0:00:07]} 43. Qd4 {[%clk 0:00:26]}  Ne6 {[%clk 0:00:05]} 44. Qe5 {[%clk 0:00:23]}  f4 {[%clk 0:00:05]} 45. Nf5 {[%clk 0:00:23]}  Kf7 {[%clk 0:00:03]} 46. d7 {[%clk 0:00:24]}  Qf6 {[%clk 0:00:04]} 47. Nd6+ {[%clk 0:00:24]}  Ke7 {[%clk 0:00:03]} 48. Qxf6+ {[%clk 0:00:25]}  Kxf6 {[%clk 0:00:04]} 49. Nxb7 {[%clk 0:00:25]}  Rb8 {[%clk 0:00:04]} 50. d8=Q+ {[%clk 0:00:26]}  Nxd8 {[%clk 0:00:05]} 51. Nxd8 {[%clk 0:00:26]}  Rxb2 {[%clk 0:00:06]} 52. Nc6 {[%clk 0:00:26]}  Ra2 {[%clk 0:00:06]} 53. Nxa7 {[%clk 0:00:26]}  Rxa3 {[%clk 0:00:06]} 54. Nb5 {[%clk 0:00:27]}  Ra2 {[%clk 0:00:07]} 55. Nd6 {[%clk 0:00:27]}  Kg6 {[%clk 0:00:07]} 56. Ne4 {[%clk 0:00:28]}  Kh5 {[%clk 0:00:07]} 57. Rd5 {[%clk 0:00:27]}  Kh4 {[%clk 0:00:06]} 58. Rxg5 {[%clk 0:00:26]}  Ra1 {[%clk 0:00:06]} 59. Rg4+ {[%clk 0:00:26]}  Kh5 {[%clk 0:00:07]} 60. Rxf4 {[%clk 0:00:27]} 1-0


[Site "https://www.chess.com"]

[Event "Titled Tuesday Blitz March 28 Late 2023"]
[White "Hambleton, Aman"]
[Black "Fedoseev, Vladimir"]
[WhiteFideId "2606577"]
[BlackFideId "24130737"]
[WhiteElo "2511"]
[BlackElo "2752"]
[Result "0-1"]
[Round "03"]
[TimeControl "180+2"]
[Date "2023.03.28"]
[WhiteClock "0:00:04"]
[BlackClock "0:01:10"]

1. d4 {[%clk 0:03:00]}  Nf6 {[%clk 0:02:56]} 2. Bf4 {[%clk 0:03:00]}  d6 {[%clk 0:02:53]} 3. e3 {[%clk 0:02:58]}  g6 {[%clk 0:02:52]} 4. h3 {[%clk 0:02:58]}  Bg7 {[%clk 0:02:52]} 5. Nf3 {[%clk 0:02:58]}  O-O {[%clk 0:02:52]} 6. c3 {[%clk 0:02:59]}  Nfd7 {[%clk 0:02:50]} 7. Be2 {[%clk 0:02:58]}  e5 {[%clk 0:02:50]} 8. Bh2 {[%clk 0:02:59]}  e4 {[%clk 0:02:50]} 9. Nfd2 {[%clk 0:02:59]}  f5 {[%clk 0:02:50]} 10. a4 {[%clk 0:02:58]}  Nc6 {[%clk 0:02:47]} 11. a5 {[%clk 0:02:57]}  a6 {[%clk 0:02:46]} 12. b4 {[%clk 0:02:57]}  Nf6 {[%clk 0:02:45]} 13. Qb3+ {[%clk 0:02:56]}  Kh8 {[%clk 0:02:44]} 14. Na3 {[%clk 0:02:56]}  Qe7 {[%clk 0:02:43]} 15. Ndc4 {[%clk 0:02:52]}  Be6 {[%clk 0:02:41]} 16. Qb2 {[%clk 0:02:52]}  Nd5 {[%clk 0:02:38]} 17. Nc2 {[%clk 0:01:54]}  f4 {[%clk 0:02:34]} 18. exf4 {[%clk 0:01:35]}  Nxf4 {[%clk 0:02:34]} 19. Bxf4 {[%clk 0:01:35]}  Rxf4 {[%clk 0:02:35]} 20. N4e3 {[%clk 0:01:35]}  Qf7 {[%clk 0:02:18]} 21. f3 {[%clk 0:01:11]}  exf3 {[%clk 0:01:52]} 22. Bxf3 {[%clk 0:01:12]}  Rxf3 {[%clk 0:01:48]} 23. gxf3 {[%clk 0:00:47]}  Qxf3 {[%clk 0:01:48]} 24. Rf1 {[%clk 0:00:46]}  Qg3+ {[%clk 0:01:31]} 25. Kd2 {[%clk 0:00:47]}  Bh6 {[%clk 0:01:29]} 26. Rae1 {[%clk 0:00:36]}  Bc4 {[%clk 0:01:22]} 27. Rg1 {[%clk 0:00:23]}  Qf2+ {[%clk 0:01:20]} 28. Kc1 {[%clk 0:00:24]}  Bd3 {[%clk 0:01:20]} 29. Qb3 {[%clk 0:00:06]}  Re8 {[%clk 0:01:14]} 30. Kb2 {[%clk 0:00:05]}  Bxe3 {[%clk 0:01:10]} 31. Rd1 {[%clk 0:00:03]}  Qxc2+ {[%clk 0:01:08]} 32. Qxc2 {[%clk 0:00:03]}  Bxc2 {[%clk 0:01:09]} 33. Kxc2 {[%clk 0:00:04]}  Bxg1 {[%clk 0:01:10]} 34. Rxg1 {[%clk 0:00:04]}  Kg7 {[%clk 0:01:10]} 35. Kd3 {[%clk 0:00:04]}  Ne7 {[%clk 0:01:10]} 36. Re1 {[%clk 0:00:04]}  Kf7 {[%clk 0:01:10]} 37. c4 {[%clk 0:00:04]}  Nf5 {[%clk 0:01:10]} 0-1


[Site "https://www.chess.com"]